bitfinex-derivatives/quotes_ETHF0:USTF0_20251001
["timestamp","ask_amount","ask_price","bid_price","bid_amount"]
[1759311900467,3.8463,4304.7,4303.5,7.15358728]
[1759311900669,7.811,4304.0,4303.9,0.41806]
[1759311900863,3.2078,4304.4,4303.9,0.41806]
[1759311900864,8.04,4304.4,4304.3,4.20652]
[1759311901068,8.286,4304.4,4304.3,7.39300823]
[1759311901573,5.1626,4304.4,4304.3,7.0595017]
[1759311901772,3.2078,4304.4,4304.3,7.0595017]
[1759311902073,8.286,4304.4,4304.3,7.0595017]
[1759311902273,11.70816739,4304.4,4304.3,0.4202017]
[1759311902675,11.70816739,4304.4,4304.3,0.0021817]
[1759311902975,11.46216739,4304.4,4304.3,0.61778817]
[1759311903169,11.70816739,4304.4,4304.3,0.0021817]
[1759311903562,11.46216739,4304.4,4304.3,0.0021817]
[1759311903773,11.70816739,4304.4,4304.3,1.9613817]
[1759311903975,11.46216739,4304.4,4304.3,1.9613817]
[1759311904172,11.70816739,4304.4,4304.3,1.9613817]
[1759311904868,11.70816739,4304.4,4304.3,6.6414817]
[1759311905064,10.1775,4304.4,4304.3,6.6414817]
[1759311905270,10.1775,4304.4,4304.3,3.7906817]
[1759311905970,4.26432,4304.3,4304.1,0.61625861]
[1759311906174,6.9697,4304.2,4304.1,0.61625861]
[1759311906476,6.9687,4304.2,4304.1,0.61625861]
[1759311906975,4.8322,4304.1,4304.0,5.09815]
[1759311907278,5.1626,4304.4,4304.3,6.6393]
[1759311907581,8.285,4304.4,4304.3,6.6393]
[1759311907980,5.4076,4304.4,4304.3,7.25617109]
[1759311908183,5.4076,4304.4,4304.3,7.25527423]
[1759311908480,5.4076,4304.4,4304.3,7.25401873]
[1759311908678,1.04734157,4305.4,4304.3,7.25401873]
[1759311908679,3.2078,4304.9,4304.4,2.8508]
[1759311908883,4.73846739,4304.9,4304.8,6.6393]
[1759311909080,3.4528,4304.9,4304.8,6.6393]
[1759311910686,8.285,4304.9,4304.8,6.6393]
[1759311911481,8.285,4304.9,4304.8,3.7885]
[1759311911482,10.1765,4304.9,4304.8,3.7885]
[1759311912384,10.1765,4304.9,4304.8,4.50899553]
[1759311912579,6.9687,4304.9,4304.8,7.35979553]
[1759311913182,6.9687,4304.9,4304.8,7.67031771]
[1759311913380,10.1765,4304.9,4304.8,4.81951771]
[1759311913576,11.70716739,4304.9,4304.8,0.72049553]
[1759311914173,11.70716739,4304.9,4304.8,1.03142377]
[1759311915080,16.70716739,4304.9,4304.8,0.96862863]
[1759311917284,16.70716739,4304.9,4304.8,2.6091449]
[1759311917581,11.46216739,4304.9,4304.8,4.0908649]
[1759311917783,1.32577641,4304.9,4304.8,6.81898414]
[1759311918184,1.57077641,4304.9,4304.8,8.47436574]
[1759311918985,1.56977641,4304.9,4304.8,6.6393]
[1759311919688,1.56977641,4304.9,4304.8,7.05728]
[1759311919884,2.1988,4304.9,4304.8,6.6393]
[1759311920082,5.2043,4304.9,4304.3,1.6553816]
[1759311920285,3.921,4304.3,4304.2,1.8602]
[1759311920587,7.1826,4304.3,4304.2,6.5412]
[1759311920783,8.71326739,4304.3,4304.2,6.5412]
[1759311921277,8.71326739,4304.3,4304.2,3.696]
[1759311921477,8.71326739,4304.3,4304.2,1.8602]
[1759311922083,6.9386,4304.1,4304.0,0.00179984]
[1759311922282,7.1826,4304.1,4304.0,0.00179984]
[1759311922487,8.71326739,4304.1,4304.0,0.00179984]
[1759311923279,8.71326739,4304.1,4304.0,1.24489879]
[1759311923689,8.71326739,4304.1,4304.0,0.00179984]
[1759311924187,8.71326739,4304.1,4304.0,1.24492758]
[1759311924580,8.88730739,4304.1,4304.0,0.00179984]
[1759311924782,9.13130739,4304.1,4304.0,1.86199984]
[1759311925382,8.88730739,4304.1,4304.0,1.86199984]
[1759311925582,9.13130739,4304.1,4304.0,1.86199984]
[1759311925778,9.13130739,4304.1,4304.0,6.62209984]
[1759311926076,1.9783,4304.1,4304.0,8.24724984]
[1759311926287,0.244,4304.1,4304.0,5.41764984]
[1759311926482,0.66205,4304.1,4304.0,7.82919984]
[1759311928090,0.41805,4304.1,4304.0,7.82919984]
[1759311928289,0.66205,4304.1,4304.0,7.82919984]
[1759311928783,2.61415,4304.1,4304.0,7.82919984]
[1759311928990,0.244,4304.1,4304.0,8.24724984]
[1759311929688,0.66205,4304.1,4304.0,8.24724984]
[1759311930488,7.45745,4304.1,4304.0,6.62209984]
[1759311931190,1.9521,4304.1,4304.0,7.04014984]
[1759311931490,4.61264,4304.1,4304.0,1.86999984]
[1759311931687,7.45744,4304.1,4304.0,1.86999984]
[1759311931886,7.45744,4304.1,4304.0,4.69959984]
[1759311932090,7.45744,4304.1,4304.0,1.86999984]
[1759311932389,8.98810739,4304.1,4304.0,1.86999984]
[1759311932590,8.98810739,4304.1,4304.0,1.24587825]
[1759311932790,8.98810739,4304.1,4304.0,0.83133196]
[1759311932986,8.98810739,4304.1,4304.0,0.00179984]
[1759311933886,8.98810739,4304.1,4304.0,0.62412289]
[1759311934194,13.98810739,4304.1,4304.0,0.62411314]
[1759311934389,13.98810739,4304.1,4304.0,0.00179984]
[1759311936590,13.98710739,4304.1,4304.0,0.00179984]
[1759311937097,13.74410739,4304.1,4304.0,0.00179984]
[1759311937287,13.98710739,4304.1,4304.0,0.00179984]
[1759311938691,8.98710739,4304.1,4304.0,0.00179984]
[1759311939399,8.98710739,4304.1,4303.0,1.24407841]
[1759311939400,7.21354,4303.1,4303.0,1.8682]
[1759311939596,7.21356,4302.9,4302.8,1.8682]
[1759311939795,7.21358,4302.7,4302.6,4.21689]
[1759311939995,7.45658,4302.7,4302.6,7.04649]
[1759311940192,2.61328,4302.7,4302.6,7.04649]
[1759311940396,2.61328,4302.7,4302.6,7.04896474]
[1759311940791,2.1951,4302.7,4302.6,7.04896474]
[1759311940994,2.61328,4302.7,4302.6,7.04896474]
[1759311941302,2.61328,4302.7,4302.6,6.63077474]
[1759311942103,0.66118,4302.7,4302.6,6.63077474]
[1759311942302,7.45658,4302.7,4302.6,6.63077474]
[1759311943003,4.61178,4302.7,4302.6,6.63077474]
[1759311944104,7.45658,4302.7,4302.6,6.63077474]
[1759311945307,2.61328,4302.7,4302.6,6.63077474]
[1759311945601,0.41814,4303.1,4303.0,7.8354]
[1759311945913,2.61324,4303.1,4303.0,7.8354]
[1759311946415,2.61224,4303.1,4303.0,7.8354]
[1759311947508,2.37024,4303.1,4303.0,7.8354]
[1759311947908,0.66014,4303.1,4303.0,7.8354]
[1759311949209,5.45704,4303.1,4303.0,7.8354]
[1759311949410,0.41818,4302.7,4302.6,0.24447474]
[1759311949710,7.21358,4302.7,4302.6,7.04896474]
[1759311950021,7.45558,4302.7,4302.6,7.04896474]
[1759311950314,7.45558,4302.7,4302.6,6.63077474]
[1759311950905,7.21358,4302.7,4302.6,6.63077474]
[1759311951109,7.45558,4302.7,4302.6,6.63077474]
[1759311951712,7.21358,4302.7,4302.6,6.63077474]
[1759311952021,2.61228,4302.7,4302.6,6.63077474]
[1759311952311,3.2078,4303.8,4303.2,2.8296]
[1759311952508,10.42127,4303.8,4303.7,6.6283]
[1759311952714,10.66327,4303.8,4303.7,6.6283]
[1759311952913,5.57797,4303.8,4303.7,6.6283]
[1759311953219,2.37017,4303.8,4303.7,6.6283]
[1759311953412,2.1941,4303.8,4303.7,6.6283]
[1759311953715,0.242,4303.8,4303.7,6.6283]
[1759311954117,0.242,4303.9,4303.8,2.7472]
[1759311954320,5.44293,4304.3,4304.2,3.857]
[1759311954522,5.68493,4304.3,4304.2,6.6042]
[1759311954719,8.41783,4304.3,4304.2,6.6042]
[1759311955224,7.7578,4304.3,4304.2,6.6042]
[1759311955516,5.2669,4304.3,4304.2,6.6042]
[1759311955819,5.0249,4304.3,4304.2,6.6042]
[1759311956017,5.2669,4304.3,4304.2,6.6042]
[1759311956222,5.2669,4304.3,4303.8,0.242]
[1759311956223,0.41807,4303.9,4303.8,0.242]
[1759311956413,7.07197,4303.9,4303.8,1.9686]
[1759311956723,6.4119,4303.7,4303.6,4.7158]
[1759311957020,6.6539,4303.7,4303.6,6.6042]
[1759311960121,3.679,4303.4,4303.3,5.96006307]
[1759311960325,6.4119,4303.4,4303.3,7.84846307]
[1759311960622,1.8171,4303.4,4303.3,7.84846307]
[1759311960816,0.242,4303.5,4303.4,7.02232]
[1759311961622,2.0591,4303.5,4303.4,7.02232]
[1759311962221,2.47721,4303.5,4303.4,6.6042]
[1759311962421,4.792,4303.5,4303.4,8.26658307]
[1759311962621,5.21011,4303.5,4303.4,7.84846307]
[1759311962818,6.6539,4303.5,4303.4,7.02232]
[1759311963023,2.0591,4303.5,4303.4,7.02232]
[1759311963219,2.7329,4304.2,4303.9,6.6042]
[1759311963415,4.96806,4304.0,4303.9,3.857]
[1759311963616,6.82996,4304.0,4303.9,3.857]
[1759311963822,6.82996,4304.0,4303.9,6.6042]
[1759311964415,7.98276,4304.0,4303.9,6.6042]
[1759311964916,2.23516,4304.0,4303.9,6.6042]
[1759311965116,2.47616,4304.0,4303.9,6.6042]
[1759311965512,5.20906,4304.0,4303.9,6.6042]
[1759311968827,2.47616,4304.0,4303.9,6.6042]
[1759311969320,5.20906,4304.0,4303.9,6.6042]
[1759311969530,0.41804,4304.2,4304.0,3.9104]
[1759311969826,5.9407,4304.3,4304.2,3.857]
[1759311970020,7.7578,4304.3,4304.2,6.6042]
[1759311970326,5.20903,4304.3,4304.2,6.6042]
[1759311972322,4.96803,4304.3,4304.2,6.6042]
[1759311972624,5.20903,4304.3,4304.2,6.6042]
[1759311973229,7.07093,4304.3,4304.2,6.6042]
[1759311973919,6.82993,4304.3,4304.2,6.6042]
[1759311974121,7.07093,4304.3,4304.2,6.6042]
[1759311976324,7.07093,4304.3,4304.2,1.9686]
[1759311976530,5.24985,4304.0,4303.9,3.57701634]
[1759311976731,8.22375,4304.0,4303.9,5.54561634]
[1759311976925,8.22375,4304.0,4303.9,5.96367634]
[1759311977529,7.8057,4304.0,4303.9,7.85207634]
[1759311977917,8.22375,4304.0,4303.9,7.43401634]
[1759311978529,6.6529,4304.0,4303.9,7.43401634]
[1759311978731,6.6529,4304.0,4303.9,6.6042]
[1759311979523,7.07095,4304.0,4303.9,6.6042]
[1759311980825,6.82995,4304.0,4303.9,6.6042]
[1759311981024,7.07095,4304.0,4303.9,6.6042]
[1759311981224,7.07095,4304.0,4303.9,7.84846307]
[1759311981424,6.82995,4304.0,4303.9,7.84846307]
[1759311981625,8.20335,4304.0,4303.9,7.84846307]
[1759311982228,8.20335,4304.0,4303.9,6.6042]
[1759311982428,7.07095,4304.0,4303.9,6.6042]
[1759311982628,8.20335,4304.0,4303.9,1.9686]
[1759311982829,7.02096,4303.9,4303.8,6.9159]
[1759311983726,6.6029,4303.9,4303.8,6.9159]
[1759311983930,1.913,4303.9,4303.8,7.33397]
[1759311984132,2.30015,4304.1,4304.0,7.696]
[1759311984328,2.54115,4304.1,4304.0,8.9449532]
[1759311984535,7.14575,4304.1,4304.0,5.9829532]
[1759311984736,7.14575,4304.1,4304.0,7.8482532]
[1759311985130,7.14575,4304.1,4304.0,1.8082]
[1759311985325,6.7277,4304.1,4303.9,1.2489532]
[1759311985530,5.40365,4304.0,4303.9,3.0571532]
[1759311985730,8.30335,4304.0,4303.9,3.0571532]
[1759311986729,8.30335,4304.0,4303.9,4.734]
[1759311987629,8.30335,4304.0,4303.9,1.24833515]
[1759311989335,6.90476,4303.9,4303.8,1.24833515]
[1759311989536,6.90478,4303.7,4303.6,1.24833515]
[1759311989735,6.90478,4303.7,4303.5,1.24833515]
[1759311989736,6.90479,4303.6,4303.5,1.24833515]
[1759311989936,4.24611,4303.4,4303.3,1.24833515]
[1759311990232,7.14581,4303.4,4303.3,1.24833515]
[1759311990431,4.24612,4303.3,4303.2,1.24833515]
[1759311990632,7.14582,4303.3,4303.2,3.05653515]
[1759311991232,7.14582,4303.3,4303.2,1.8082]
[1759311991429,0.41813,4303.2,4303.1,4.45613515]
[1759311991632,6.90484,4303.1,4303.0,1.24833515]
[1759311991834,6.90486,4302.9,4302.8,7.84763515]
[1759311992036,7.14586,4302.9,4302.8,7.84763515]
[1759311992239,7.14586,4302.9,4302.8,6.5993]
[1759311992633,6.7277,4302.9,4302.8,6.5993]
[1759311992939,2.30021,4303.4,4303.3,6.5993]
[1759311993239,7.14581,4303.4,4303.3,7.43072717]
[1759311993832,6.90481,4303.4,4303.3,7.43072717]
[1759311994042,7.14581,4303.4,4303.3,7.43072717]
[1759311994236,7.14581,4303.4,4303.3,6.5993]
[1759311994442,7.14581,4303.4,4303.3,1.8082]
[1759311994835,6.90481,4303.4,4303.3,4.734]
[1759311995035,2.54121,4303.4,4303.3,7.43072717]
[1759311996033,5.19991,4303.4,4303.3,7.43072717]
[1759311996535,4.7818,4303.4,4303.3,7.43072717]
[1759311996942,5.19991,4303.4,4303.3,7.43072717]
[1759311997741,7.14581,4303.4,4303.3,6.5993]
[1759311999547,6.90482,4303.3,4303.2,0.83142717]
[1759311999745,4.24613,4303.2,4303.1,4.03922717]
[1759311999945,7.14583,4303.2,4303.1,4.03922717]
[1759312000142,7.14583,4303.2,4303.1,3.2078]
[1759312000341,7.14583,4303.2,4303.1,3.83147739]
[1759312000546,7.14583,4303.2,4303.1,0.62367739]
[1759312001342,4.24614,4303.1,4303.0,0.62367739]
[1759312001547,6.90484,4303.1,4303.0,0.62367739]
[1759312002538,5.40375,4303.0,4302.9,2.43187739]
[1759312002843,8.30345,4303.0,4302.9,2.43187739]
[1759312003038,8.06245,4303.0,4302.9,2.43187739]
[1759312003244,8.30345,4303.0,4302.9,7.22297739]
[1759312003741,7.14585,4303.0,4302.9,7.22297739]
[1759312004750,7.14585,4303.0,4302.9,6.5993]
[1759312005747,7.14585,4303.0,4302.9,7.22280682]
[1759312006445,7.14585,4303.0,4302.9,6.5993]
[1759312006847,2.54125,4303.0,4302.9,7.01746]
[1759312007053,0.241,4303.0,4302.9,3.6735]
[1759312007652,0.65915,4303.0,4302.9,6.5993]
[1759312007852,0.41815,4303.0,4302.9,6.5993]
[1759312008148,2.20287,4303.5,4302.9,6.5993]
[1759312008149,3.07681,4303.5,4303.2,0.41813]
[1759312008347,2.30017,4303.8,4303.7,3.6735]
[1759312008553,5.19987,4303.8,4303.7,7.22248975]
[1759312008855,7.14577,4303.8,4303.7,7.22248975]
[1759312009052,7.14577,4303.8,4303.7,7.22246303]
[1759312009357,7.14577,4303.8,4303.7,6.5993]
[1759312009556,0.41807,4303.8,4303.7,6.5993]
[1759312009854,0.41807,4303.8,4303.7,7.67172717]
[1759312011651,0.41799,4304.8,4304.4,6.5993]
[1759312011953,3.2078,4305.1,4305.0,4.7702]
[1759312012253,0.00253157,4305.4,4305.3,1.8082]
[1759312012453,0.00253157,4305.4,4305.3,7.6696243]
[1759312013357,0.00253157,4305.4,4305.3,6.8403]
[1759312014268,0.00253157,4305.4,4305.3,7.4613629]
[1759312015271,6.47933157,4305.4,4305.3,6.8403]
[1759312015774,0.00253157,4305.4,4305.3,6.8403]
[1759312018570,4.57063157,4305.4,4305.3,6.8403]
[1759312018772,6.47933157,4305.4,4305.3,6.8403]
[1759312019168,6.47933157,4305.4,4305.3,6.5993]
[1759312019566,1.73553157,4305.4,4305.3,6.5993]
[1759312019871,4.57063157,4305.4,4305.3,6.5993]
[1759312021969,6.89725157,4305.4,4305.3,1.8082]
[1759312022266,6.89473,4305.3,4305.2,2.1497]
[1759312022472,6.89473,4305.3,4305.2,6.6001]
[1759312022671,7.13573,4305.3,4305.2,6.3591]
[1759312024474,6.7178,4305.3,4305.2,6.3591]
[1759312024868,0.00253157,4305.4,4305.3,2.7101]
[1759312025075,0.00253157,4305.4,4305.3,6.3591]
[1759312025278,0.00253157,4305.4,4305.3,6.77703]
[1759312026274,7.6127,4305.0,4304.8,0.6210629]
[1759312026469,0.00253157,4305.4,4305.3,6.77703]
[1759312026779,4.57063157,4305.4,4305.3,6.77703]
[1759312026979,1.73553157,4305.4,4305.3,7.01803]
[1759312027373,4.57063157,4305.4,4305.3,7.01803]
[1759312027780,0.00253157,4305.4,4305.3,7.01803]
[1759312032880,6.47933157,4305.4,4305.3,7.01803]
[1759312033075,1.73553157,4305.4,4305.3,7.01803]
[1759312036186,1.73553157,4305.4,4305.3,7.63844823]
[1759312037084,4.57063157,4305.4,4305.3,7.63844823]
[1759312037386,4.57063157,4305.4,4305.3,7.01803]
[1759312037988,6.47933157,4305.4,4305.3,7.01803]
[1759312039087,6.47933157,4305.4,4305.3,7.8473543]
[1759312039387,6.47933157,4305.4,4305.3,7.01803]
[1759312039775,6.47933157,4305.4,4305.3,6.6001]
[1759312039982,6.47933157,4305.4,4305.3,7.43048678]
[1759312040284,7.13825157,4305.4,4305.3,1.8342]
[1759312040485,0.41793,4305.3,4305.2,0.83111356]
[1759312040681,6.77853,4305.3,4305.2,1.45455642]
[1759312040885,6.77853,4305.3,4305.2,0.62344286]
[1759312041288,3.96114,4305.2,4305.1,0.83111356]
[1759312041489,7.01954,4305.2,4305.1,0.83111356]
[1759312043390,6.6016,4305.2,4305.1,0.83111356]
[1759312043583,6.6016,4305.2,4305.1,3.02306356]
[1759312043782,6.6016,4305.2,4305.1,5.64436356]
[1759312043984,6.6016,4305.2,4305.1,7.42126356]
[1759312044181,6.77854,4305.2,4305.1,7.42126356]
[1759312044386,7.01954,4305.2,4305.1,7.42126356]
[1759312044580,7.01954,4305.2,4305.1,4.38201356]
[1759312044791,7.01954,4305.2,4305.1,0.83111356]
[1759312045286,6.399,4305.1,4305.0,0.83111356]
[1759312045483,6.81695,4305.1,4305.0,0.83111356]
[1759312045684,6.81695,4305.1,4305.0,2.60511356]
[1759312046284,6.81695,4305.1,4305.0,1.774]
[1759312046487,5.19896,4305.0,4304.9,1.774]
[1759312046692,7.7609,4305.0,4304.9,2.19197]
[1759312046886,7.7609,4305.0,4304.9,4.81327]
[1759312047083,8.17886,4305.0,4304.9,4.81327]
[1759312047284,8.17886,4305.0,4304.9,4.3953]
[1759312047691,7.7609,4305.0,4304.9,4.81327]
[1759312048085,8.17886,4305.0,4304.9,4.3953]
[1759312048292,8.17886,4305.0,4304.9,1.774]
[1759312049186,7.7609,4305.0,4304.9,2.19197]
[1759312049492,8.17886,4305.0,4304.9,1.774]
[1759312049992,8.17886,4305.0,4304.9,2.19197]
[1759312050390,6.81698,4304.8,4304.7,0.83111356]
[1759312050596,0.42045157,4305.4,4304.7,4.62301356]
[1759312050896,7.05795,4305.1,4305.0,6.1722]
[1759312051289,6.64,4305.1,4305.0,6.1722]
[1759312051490,7.05795,4305.1,4305.0,6.1722]
[1759312051896,6.81695,4305.1,4305.0,6.1722]
[1759312052097,7.05795,4305.1,4305.0,6.1722]
[1759312053087,0.65894,4305.2,4305.1,2.6213]
[1759312053292,0.65894,4305.2,4305.1,6.1722]
[1759312053897,5.24094,4305.2,4305.1,6.1722]
[1759312054796,5.24094,4305.2,4305.1,6.59015]
[1759312054797,4.582,4305.2,4305.1,6.59015]
[1759312054996,5.00245157,4305.4,4305.3,6.1722]
[1759312055190,5.00245157,4305.4,4305.3,6.4132]
[1759312055398,1.84563157,4305.4,4305.3,6.83113]
[1759312055598,0.00253157,4305.4,4305.3,8.07672129]
[1759312057499,0.00253157,4305.4,4305.3,6.83113]
[1759312057698,0.00253157,4305.4,4305.3,8.4865116]
[1759312057892,0.00253157,4305.4,4305.3,6.83113]
[1759312058593,2.7389,4306.3,4306.2,0.41784]
[1759312058797,4.582,4306.4,4306.3,6.1722]
[1759312059698,4.58466624,4306.4,4306.3,6.17391863]
[1759312060298,6.40166624,4306.4,4306.3,6.17391863]
[1759312060601,7.06048624,4306.4,4306.3,6.17391863]
[1759312060802,7.06048624,4306.4,4306.3,0.00171863]
[1759312061806,7.06048624,4306.4,4306.3,1.77571863]
[1759312062000,7.06048624,4306.4,4306.3,0.00171863]
[1759312067800,6.40166624,4306.4,4306.3,1.77571863]
[1759312068003,6.81948624,4306.4,4306.3,1.77571863]
[1759312068212,7.06048624,4306.4,4306.3,6.17391863]
[1759312069100,12.06048624,4306.4,4306.3,0.00171863]
[1759312070917,6.81948624,4306.4,4306.3,1.77571863]
[1759312071121,7.06048624,4306.4,4306.3,0.00171863]
[1759312073118,6.81948624,4306.4,4306.3,0.00171863]
[1759312073322,7.06048624,4306.4,4306.3,0.00171863]
[1759312073923,7.06048624,4306.4,4306.3,1.81651863]
[1759312074721,7.06048624,4306.4,4306.3,0.00171863]
[1759312075815,6.81948624,4306.4,4306.3,2.23434863]
[1759312076021,7.06048624,4306.4,4306.3,6.70294863]
[1759312076926,7.06048624,4306.4,4306.3,6.28511863]
[1759312077222,7.06048624,4306.4,4306.3,6.70294863]
[1759312077426,7.06048624,4306.4,4306.3,6.28511863]
[1759312079828,7.06048624,4306.4,4306.3,1.81651863]
[1759312080330,7.06048624,4306.4,4306.3,0.00171863]
[1759312081025,0.00266624,4306.4,4306.3,6.70294863]
[1759312081223,6.58508624,4306.4,4306.3,6.28511863]
[1759312081423,6.82608624,4306.4,4306.3,6.28511863]
[1759312081632,6.40826624,4306.4,4306.3,6.70294863]
[1759312082123,0.00266624,4306.4,4306.3,6.70294863]
[1759312082330,0.00266624,4306.4,4306.3,12.53296478]
[1759312082530,0.00266624,4306.4,4306.3,11.70294863]
[1759312083422,0.00266624,4306.4,4306.3,11.94394863]
[1759312083623,0.00266624,4306.4,4306.3,13.18897286]
[1759312084133,0.00266624,4306.4,4306.3,6.94394863]
[1759312084432,4.47306624,4306.4,4306.3,6.94394863]
[1759312084727,6.16726624,4306.4,4306.3,0.00171863]
[1759312084937,6.16726624,4306.4,4306.3,5.29332341]
[1759312085224,6.16726624,4306.4,4306.3,7.11482341]
[1759312085531,1.75366624,4306.4,4306.3,6.28511863]
[1759312085931,1.75366624,4306.4,4306.3,7.11505928]
[1759312086134,6.16726624,4306.4,4306.3,7.11505928]
[1759312086628,6.16726624,4306.4,4306.3,2.64645928]
[1759312086924,6.40726624,4306.4,4306.3,0.00171863]
[1759312088334,11.40726624,4306.4,4306.3,0.00171863]
[1759312088530,7.61041,4305.5,4305.3,0.82994065]
[1759312088829,6.58254,4305.2,4305.1,0.82994065]
[1759312089031,6.1646,4305.1,4305.0,3.2078]
[1759312089434,6.1646,4305.1,4304.9,0.82994065]
[1759312089435,4.89106,4305.0,4304.9,0.82994065]
[1759312089736,6.58262,4304.4,4304.3,3.2078]
[1759312089929,6.58262,4304.4,4304.3,3.21021871]
[1759312090240,6.58262,4304.4,4304.3,7.67211871]
[1759312090535,6.58262,4304.4,4304.3,0.00241871]
[1759312090837,6.58262,4304.4,4303.4,1.24502423]
[1759312090838,6.1646,4303.4,4303.3,3.2078]
[1759312091035,6.4046,4303.4,4303.3,3.2078]
[1759312091239,6.1646,4303.4,4303.3,9.4912]
[1759312091532,1.751,4303.4,4303.3,9.4912]
[1759312091839,2.16902,4304.3,4304.2,6.2834]
[1759312092040,6.82262,4304.3,4304.2,1.8148]
[1759312092331,6.82262,4304.3,4304.2,6.2834]
[1759312092923,6.58266,4303.9,4303.8,2.0548]
[1759312093935,6.82266,4303.9,4303.8,1.8148]
[1759312094441,6.58269,4303.6,4303.5,1.8148]
[1759312094933,6.58271,4303.4,4303.3,0.00240957]
[1759312095130,6.82271,4303.4,4303.3,0.00240957]
[1759312097430,6.58271,4303.4,4303.3,4.46430957]
[1759312097735,6.82271,4303.4,4303.3,6.28580957]
[1759312098337,6.58271,4303.4,4303.3,6.28580957]
[1759312098935,6.58271,4303.4,4303.3,0.00240957]
[1759312099242,6.82271,4303.4,4303.3,0.00240957]
[1759312100733,11.82271,4303.4,4303.3,9.57e-06]
[1759312100932,11.58271,4303.4,4303.3,9.57e-06]
[1759312101239,6.82271,4303.4,4303.3,9.57e-06]
[1759312101743,11.82271,4303.4,4303.3,9.57e-06]
[1759312102435,6.58271,4303.4,4303.3,9.57e-06]
[1759312102635,6.82271,4303.4,4303.3,9.57e-06]
[1759312103234,11.82271,4303.4,4303.3,9.57e-06]
[1759312103945,6.58271,4303.4,4303.3,9.57e-06]
[1759312104243,6.82271,4303.4,4303.3,9.57e-06]
[1759312104836,6.58271,4303.4,4303.3,4.32770957]
[1759312105038,6.58271,4303.4,4303.3,6.03150957]
[1759312105039,0.41811,4303.4,4303.3,6.03150957]
[1759312105244,0.65811,4303.4,4303.3,6.03150957]
[1759312105435,0.41811,4303.4,4303.3,6.03150957]
[1759312106137,0.4181,4303.5,4303.3,6.03150957]
[1759312106344,0.4181,4303.5,4303.4,6.0315]
[1759312107545,5.973,4304.2,4304.1,6.0315]
[1759312107734,6.213,4304.2,4304.1,6.0315]
[1759312107940,6.63103,4304.2,4304.1,1.6616]
[1759312108143,6.63103,4304.2,4303.8,2.6661]
[1759312108144,3.87996,4303.9,4303.8,4.3277]
[1759312108335,6.63106,4303.9,4303.8,4.3277]
[1759312108538,6.63106,4303.9,4303.8,6.0315]
[1759312109346,7.4497,4303.5,4303.4,1.6616]
[1759312109744,2.5111,4303.4,4303.3,9.57e-06]
[1759312109944,2.7511,4303.4,4303.3,9.57e-06]
[1759312110249,0.24,4303.4,4303.3,9.57e-06]
[1759312110646,3.7019,4303.4,4303.3,3.36540957]
[1759312110844,6.213,4303.4,4303.3,1.66160957]
[1759312111142,6.213,4303.4,4303.3,9.57e-06]
[1759312111347,3.7019,4303.4,4303.3,9.57e-06]
[1759312113848,4.12001,4303.4,4303.3,9.57e-06]
[1759312122554,3.88001,4303.4,4303.3,4.32770957]
[1759312122744,4.12001,4303.4,4303.3,1.66160957]
[1759312122942,6.63111,4303.4,4303.3,1.66160957]
[1759312123148,6.63111,4303.4,4303.3,9.57e-06]
[1759312124054,6.39111,4303.4,4303.3,9.57e-06]
[1759312124455,6.63111,4303.4,4303.3,9.57e-06]
[1759312124753,6.63111,4303.4,4303.3,1.66160957]
[1759312125255,6.63111,4303.4,4303.3,9.57e-06]
[1759312126658,6.63111,4303.4,4303.3,1.66160957]
[1759312126954,6.63111,4303.4,4303.3,9.57e-06]
[1759312129755,4.12001,4303.4,4303.3,9.57e-06]
[1759312131462,9.12001,4303.4,4303.3,9.57e-06]
[1759312132363,3.88012,4302.3,4302.2,4.32270957]
[1759312132660,6.63122,4302.3,4302.2,4.32270957]
[1759312133063,0.41822,4302.3,4302.2,6.02650957]
[1759312133259,0.41822,4302.3,4302.2,11.02650957]
[1759312133475,0.42040086,4302.3,4302.2,11.0293733]
[1759312135078,0.41822,4302.3,4302.2,11.4476033]
[1759312135465,0.41822,4302.3,4302.2,11.0293733]
[1759312136170,0.4201457,4302.3,4302.2,11.85900799]
[1759312136559,0.0019257,4302.3,4302.2,12.27723799]
[1759312137264,3.2078,4303.2,4303.1,5.9093]
[1759312137460,3.62593,4303.2,4303.1,5.9093]
[1759312137865,5.26163,4303.2,4303.1,5.9093]
[1759312138070,7.81963,4303.2,4303.1,5.9093]
[1759312138271,7.82139259,4303.2,4303.1,5.9093]
[1759312138469,3.62769259,4303.2,4303.1,5.9093]
[1759312139672,3.62769259,4303.2,4303.1,10.9093]
[1759312139974,0.41989259,4303.2,4303.1,10.9093]
[1759312140275,0.41989259,4303.2,4303.1,11.73822191]
[1759312140572,0.00176259,4303.2,4303.1,11.32744]
[1759312141376,0.41989259,4303.2,4303.1,12.15330632]
[1759312141675,0.41989259,4303.2,4303.1,7.39330632]
[1759312142271,0.41989259,4303.2,4303.1,6.1493]
[1759312143979,0.00176259,4303.2,4303.1,6.1493]
[1759312144278,0.41809,4303.6,4303.5,5.2028]
[1759312144575,0.41809,4303.6,4303.5,7.1252]
[1759312145275,4.61414816,4303.6,4303.5,7.1252]
[1759312145776,0.42044816,4303.6,4303.5,7.1252]
[1759312147077,4.61414816,4303.6,4303.5,7.1252]
[1759312147276,4.61414816,4303.6,4303.5,6.1493]
[1759312147576,0.42044816,4303.6,4303.5,7.1252]
[1759312149788,0.00235816,4303.6,4303.5,7.1252]
[1759312150077,0.42044816,4303.6,4303.5,7.1252]
[1759312151478,0.00235816,4303.6,4303.5,7.1252]
[1759312151674,0.41802,4304.3,4304.2,5.9093]
[1759312151876,0.41802,4304.3,4304.2,6.1493]
[1759312152480,3.2078,4304.8,4304.2,3.7131]
[1759312152681,3.2078,4304.8,4304.2,6.1493]
[1759312152682,0.42026761,4304.3,4304.2,6.1493]
[1759312153881,2.05596761,4304.3,4304.2,6.1493]
[1759312154084,4.61396761,4304.3,4304.2,6.1493]
[1759312154679,0.42026761,4304.3,4304.2,6.1493]
[1759312154881,0.00224761,4304.3,4304.2,6.56733]
[1759312155281,0.00224761,4304.3,4304.2,11.56733]
[1759312155879,6.33342,4305.4,4305.3,1.7907]